[Event "Titled Tuesday Blitz December 20 Late 2022"]
[White "Peatman, Carter"]
[Black "Marcolino, Daniel Mattos"]
[WhiteFideId "2096480"]
[BlackFideId "2106841"]
[WhiteElo "2410"]
[BlackElo "2161"]
[Result "1-0"]
[Round "10"]
[TimeControl "180+1"]
[Date "2022.12.21"]
[WhiteClock "0:00:10"]
[BlackClock "0:00:02"]

1. d4 {[%clk 0:02:59]}  Nf6 {[%clk 0:02:57]} 2. Bf4 {[%clk 0:02:59]}  d5 {[%clk 0:02:57]} 3. e3 {[%clk 0:03:00]}  c5 {[%clk 0:02:57]} 4. dxc5 {[%clk 0:03:00]}  Nc6 {[%clk 0:02:56]} 5. Bb5 {[%clk 0:03:00]}  a6 {[%clk 0:02:53]} 6. Ba4 {[%clk 0:02:58]}  e6 {[%clk 0:02:53]} 7. b4 {[%clk 0:02:57]}  Be7 {[%clk 0:02:53]} 8. Nf3 {[%clk 0:02:56]}  O-O {[%clk 0:02:53]} 9. c3 {[%clk 0:02:54]}  Ne4 {[%clk 0:02:51]} 10. Bxc6 {[%clk 0:02:49]}  bxc6 {[%clk 0:02:51]} 11. O-O {[%clk 0:02:45]}  a5 {[%clk 0:02:45]} 12. Qb3 {[%clk 0:02:39]}  axb4 {[%clk 0:02:41]} 13. cxb4 {[%clk 0:02:39]}  Bf6 {[%clk 0:02:40]} 14. Be5 {[%clk 0:02:40]}  Ba6 {[%clk 0:02:38]} 15. Re1 {[%clk 0:02:35]}  Bxe5 {[%clk 0:02:35]} 16. Nxe5 {[%clk 0:02:36]}  Qf6 {[%clk 0:02:35]} 17. Qb2 {[%clk 0:02:35]}  Rfb8 {[%clk 0:02:05]} 18. Rc1 {[%clk 0:02:19]}  Bb5 {[%clk 0:01:34]} 19. f4 {[%clk 0:02:11]}  Ra4 {[%clk 0:01:20]} 20. Nd2 {[%clk 0:01:55]}  Nxd2 {[%clk 0:01:18]} 21. Qxd2 {[%clk 0:01:55]}  Rba8 {[%clk 0:01:18]} 22. Rc3 {[%clk 0:01:48]}  Qf5 {[%clk 0:01:11]} 23. Rb3 {[%clk 0:01:37]}  Qe4 {[%clk 0:01:11]} 24. a3 {[%clk 0:01:31]}  f6 {[%clk 0:01:04]} 25. Nf3 {[%clk 0:01:30]}  Bc4 {[%clk 0:00:57]} 26. Rc3 {[%clk 0:01:14]}  Rxb4 {[%clk 0:00:57]} 27. Nd4 {[%clk 0:01:06]}  Rb1+ {[%clk 0:00:46]} 28. Rxb1 {[%clk 0:01:04]}  Qxb1+ {[%clk 0:00:47]} 29. Kf2 {[%clk 0:01:05]}  Bb5 {[%clk 0:00:47]} 30. Nxe6 {[%clk 0:01:03]}  Qf1+ {[%clk 0:00:37]} 31. Kg3 {[%clk 0:01:03]}  h5 {[%clk 0:00:26]} 32. h3 {[%clk 0:00:58]}  h4+ {[%clk 0:00:24]} 33. Kxh4 {[%clk 0:00:52]}  Kf7 {[%clk 0:00:23]} 34. Nd4 {[%clk 0:00:46]}  Rh8+ {[%clk 0:00:22]} 35. Kg3 {[%clk 0:00:47]}  g5 {[%clk 0:00:19]} 36. fxg5 {[%clk 0:00:42]}  fxg5 {[%clk 0:00:15]} 37. Qf2+ {[%clk 0:00:42]}  Qxf2+ {[%clk 0:00:16]} 38. Kxf2 {[%clk 0:00:43]}  Ba4 {[%clk 0:00:15]} 39. Rc1 {[%clk 0:00:36]}  Rb8 {[%clk 0:00:14]} 40. Kg3 {[%clk 0:00:35]}  Rb2 {[%clk 0:00:12]} 41. Rf1+ {[%clk 0:00:34]}  Kg7 {[%clk 0:00:11]} 42. Ne6+ {[%clk 0:00:33]}  Kg6 {[%clk 0:00:11]} 43. Nf8+ {[%clk 0:00:33]}  Kg7 {[%clk 0:00:11]} 44. Ne6+ {[%clk 0:00:33]}  Kg6 {[%clk 0:00:11]} 45. Rf8 {[%clk 0:00:32]}  Rb3 {[%clk 0:00:10]} 46. Kf3 {[%clk 0:00:30]}  Rxa3 {[%clk 0:00:10]} 47. Nd4 {[%clk 0:00:26]}  Rd3 {[%clk 0:00:08]} 48. Rd8 {[%clk 0:00:25]}  Rc3 {[%clk 0:00:08]} 49. Nxc6 {[%clk 0:00:23]}  Rxc5 {[%clk 0:00:07]} 50. Ne5+ {[%clk 0:00:21]}  Kg7 {[%clk 0:00:07]} 51. Kg4 {[%clk 0:00:18]}  Bb3 {[%clk 0:00:07]} 52. Kxg5 {[%clk 0:00:18]}  Rc2 {[%clk 0:00:07]} 53. g4 {[%clk 0:00:18]}  Re2 {[%clk 0:00:06]} 54. Kf4 {[%clk 0:00:18]}  Kf6 {[%clk 0:00:06]} 55. Nd3 {[%clk 0:00:11]}  Rh2 {[%clk 0:00:05]} 56. Kg3 {[%clk 0:00:10]}  Re2 {[%clk 0:00:04]} 57. Kf3 {[%clk 0:00:10]}  Rh2 {[%clk 0:00:04]} 58. Nf4 {[%clk 0:00:11]}  Rd2 {[%clk 0:00:02]} 59. h4 {[%clk 0:00:11]}  Bd1+ {[%clk 0:00:02]} 60. Kg3 {[%clk 0:00:10]} 1-0


[Site "https://www.chess.com"]

[Event "Titled Tuesday Blitz December 20 Late 2022"]
[White "Piliczewski, Bogusz"]
[Black "Gonzalez, Francisco Silva"]
[WhiteFideId "1104144"]
[BlackFideId "1512285"]
[WhiteElo "1896"]
[BlackElo "2220"]
[Result "0-1"]
[Round "10"]
[TimeControl "180+1"]
[Date "2022.12.21"]
[WhiteClock "0:00:01"]
[BlackClock "0:00:47"]

1. d4 {[%clk 0:03:00]}  Nf6 {[%clk 0:02:53]} 2. Nf3 {[%clk 0:03:00]}  d5 {[%clk 0:02:53]} 3. Bf4 {[%clk 0:02:59]}  c5 {[%clk 0:02:53]} 4. e3 {[%clk 0:02:58]}  Nc6 {[%clk 0:02:53]} 5. Be2 {[%clk 0:02:57]}  Qb6 {[%clk 0:02:52]} 6. Nc3 {[%clk 0:02:51]}  c4 {[%clk 0:02:50]} 7. Rb1 {[%clk 0:02:46]}  Bf5 {[%clk 0:02:45]} 8. O-O {[%clk 0:02:44]}  e6 {[%clk 0:02:45]} 9. h3 {[%clk 0:02:45]}  Bb4 {[%clk 0:02:44]} 10. a3 {[%clk 0:02:37]}  Bxc3 {[%clk 0:02:39]} 11. bxc3 {[%clk 0:02:37]}  Qa6 {[%clk 0:02:40]} 12. Qc1 {[%clk 0:02:35]}  O-O {[%clk 0:02:34]} 13. Qb2 {[%clk 0:02:30]}  b6 {[%clk 0:02:33]} 14. Ne5 {[%clk 0:02:22]}  Rac8 {[%clk 0:02:31]} 15. Nxc6 {[%clk 0:02:13]}  Rxc6 {[%clk 0:02:30]} 16. Qb5 {[%clk 0:02:12]}  Qc8 {[%clk 0:02:31]} 17. a4 {[%clk 0:02:08]}  Ne4 {[%clk 0:02:29]} 18. Rb2 {[%clk 0:01:33]}  Nxc3 {[%clk 0:02:19]} 19. Qb4 {[%clk 0:01:32]}  Nxe2+ {[%clk 0:02:17]} 20. Kh1 {[%clk 0:01:32]}  c3 {[%clk 0:02:13]} 21. Rb3 {[%clk 0:01:27]}  Nxf4 {[%clk 0:02:10]} 22. exf4 {[%clk 0:01:26]}  Bxc2 {[%clk 0:02:11]} 23. Ra3 {[%clk 0:01:21]}  Bd3 {[%clk 0:02:08]} 24. Rc1 {[%clk 0:01:21]}  a5 {[%clk 0:02:07]} 25. Qb3 {[%clk 0:01:15]}  Qc7 {[%clk 0:01:46]} 26. Rxc3 {[%clk 0:01:12]}  Bc4 {[%clk 0:01:46]} 27. Qc2 {[%clk 0:01:02]}  Qxf4 {[%clk 0:01:45]} 28. Rg3 {[%clk 0:00:45]}  Qxd4 {[%clk 0:01:42]} 29. Rad3 {[%clk 0:00:37]}  Bxd3 {[%clk 0:01:32]} 30. Qxc6 {[%clk 0:00:36]}  Qxf2 {[%clk 0:01:27]} 31. Kh2 {[%clk 0:00:34]}  Be4 {[%clk 0:01:25]} 32. Qc3 {[%clk 0:00:31]}  g6 {[%clk 0:01:18]} 33. h4 {[%clk 0:00:25]}  Qf4 {[%clk 0:01:18]} 34. Kh3 {[%clk 0:00:21]}  Bf5+ {[%clk 0:01:16]} 35. Kh2 {[%clk 0:00:20]}  Qxh4+ {[%clk 0:01:11]} 36. Kg1 {[%clk 0:00:20]}  Qf4 {[%clk 0:01:10]} 37. Rf3 {[%clk 0:00:19]}  Qb4 {[%clk 0:01:10]} 38. Qxb4 {[%clk 0:00:18]}  axb4 {[%clk 0:01:10]} 39. Rb3 {[%clk 0:00:18]}  d4 {[%clk 0:01:08]} 40. Rxb4 {[%clk 0:00:17]}  d3 {[%clk 0:01:08]} 41. Rxb6 {[%clk 0:00:17]}  Rd8 {[%clk 0:01:07]} 42. Rb1 {[%clk 0:00:16]}  d2 {[%clk 0:01:07]} 43. Rd1 {[%clk 0:00:15]}  Bc2 {[%clk 0:01:07]} 44. Rxd2 {[%clk 0:00:15]}  Rxd2 {[%clk 0:01:07]} 45. Kf1 {[%clk 0:00:14]}  Rxg2 {[%clk 0:01:07]} 46. Kxg2 {[%clk 0:00:14]}  Bxa4 {[%clk 0:01:05]} 47. Kf3 {[%clk 0:00:14]}  Bc6+ {[%clk 0:01:05]} 48. Kf4 {[%clk 0:00:14]}  Kg7 {[%clk 0:01:05]} 49. Kg5 {[%clk 0:00:14]}  f6+ {[%clk 0:01:05]} 50. Kf4 {[%clk 0:00:14]}  g5+ {[%clk 0:01:05]} 51. Kg4 {[%clk 0:00:14]}  Kg6 {[%clk 0:01:05]} 52. Kg3 {[%clk 0:00:13]}  h5 {[%clk 0:01:05]} 53. Kh3 {[%clk 0:00:13]}  h4 {[%clk 0:01:04]} 54. Kg4 {[%clk 0:00:13]}  Bf3+ {[%clk 0:01:01]} 55. Kxf3 {[%clk 0:00:12]}  Kh5 {[%clk 0:01:02]} 56. Kg2 {[%clk 0:00:12]}  g4 {[%clk 0:01:02]} 57. Kf2 {[%clk 0:00:11]}  f5 {[%clk 0:00:59]} 58. Ke3 {[%clk 0:00:10]}  e5 {[%clk 0:01:00]} 59. Kf2 {[%clk 0:00:10]}  f4 {[%clk 0:01:00]} 60. Kg2 {[%clk 0:00:10]}  e4 {[%clk 0:01:00]} 61. Kf2 {[%clk 0:00:09]}  e3+ {[%clk 0:01:00]} 62. Ke2 {[%clk 0:00:09]}  h3 {[%clk 0:01:00]} 63. Kd3 {[%clk 0:00:08]}  h2 {[%clk 0:00:59]} 64. Ke4 {[%clk 0:00:08]}  h1=Q+ {[%clk 0:00:59]} 65. Kxf4 {[%clk 0:00:08]}  Qe4+ {[%clk 0:00:59]} 66. Kxe4 {[%clk 0:00:07]}  e2 {[%clk 0:00:59]} 67. Kf4 {[%clk 0:00:05]}  e1=Q {[%clk 0:00:57]} 68. Kf5 {[%clk 0:00:05]}  Qe6+ {[%clk 0:00:56]} 69. Kxe6 {[%clk 0:00:04]}  g3 {[%clk 0:00:56]} 70. Kf5 {[%clk 0:00:04]}  g2 {[%clk 0:00:56]} 71. Kf4 {[%clk 0:00:04]}  g1=Q {[%clk 0:00:56]} 72. Kf3 {[%clk 0:00:04]}  Qg4+ {[%clk 0:00:55]} 73. Ke3 {[%clk 0:00:04]}  Qf5 {[%clk 0:00:54]} 74. Kd4 {[%clk 0:00:03]}  Qe6 {[%clk 0:00:54]} 75. Kc5 {[%clk 0:00:03]}  Qe4 {[%clk 0:00:54]} 76. Kd6 {[%clk 0:00:03]}  Kg5 {[%clk 0:00:53]} 77. Kc5 {[%clk 0:00:02]}  Qd3 {[%clk 0:00:51]} 78. Kc6 {[%clk 0:00:02]}  Qd4 {[%clk 0:00:51]} 79. Kc7 {[%clk 0:00:01]}  Qd5 {[%clk 0:00:50]} 80. Kb6 {[%clk 0:00:01]}  Qc4 {[%clk 0:00:50]} 81. Kb7 {[%clk 0:00:01]}  Qc5 {[%clk 0:00:50]} 82. Kb8 {[%clk 0:00:01]}  Qc6 {[%clk 0:00:47]} 0-1


[Site "https://www.chess.com"]

[Event "Titled Tuesday Blitz December 20 Late 2022"]
[White "Poliakova, Varvara"]
[Black "Polster, Christian"]
[WhiteFideId "13518313"]
[BlackFideId "12965081"]
[WhiteElo "2075"]
[BlackElo "2195"]
[Result "1-0"]
[Round "10"]
[TimeControl "180+1"]
[Date "2022.12.21"]
[WhiteClock "0:00:56"]
[BlackClock "0:00:03"]

1. e4 {[%clk 0:03:00]}  c5 {[%clk 0:02:59]} 2. Nf3 {[%clk 0:03:00]}  Nc6 {[%clk 0:02:46]} 3. d4 {[%clk 0:03:00]}  cxd4 {[%clk 0:02:47]} 4. Nxd4 {[%clk 0:03:01]}  Nf6 {[%clk 0:02:42]} 5. Nc3 {[%clk 0:03:01]}  e5 {[%clk 0:02:42]} 6. Ndb5 {[%clk 0:03:01]}  d6 {[%clk 0:02:42]} 7. Bg5 {[%clk 0:02:58]}  a6 {[%clk 0:02:42]} 8. Na3 {[%clk 0:02:57]}  b5 {[%clk 0:02:42]} 9. Nd5 {[%clk 0:02:55]}  Be7 {[%clk 0:02:41]} 10. Bxf6 {[%clk 0:02:56]}  Bxf6 {[%clk 0:02:42]} 11. c3 {[%clk 0:02:56]}  Bg5 {[%clk 0:02:38]} 12. Nc2 {[%clk 0:02:56]}  O-O {[%clk 0:02:34]} 13. g3 {[%clk 0:02:57]}  Be6 {[%clk 0:02:32]} 14. Bg2 {[%clk 0:02:55]}  Ne7 {[%clk 0:02:25]} 15. O-O {[%clk 0:02:54]}  Nxd5 {[%clk 0:01:59]} 16. exd5 {[%clk 0:02:54]}  Bf5 {[%clk 0:01:54]} 17. Ne3 {[%clk 0:02:47]}  Bg6 {[%clk 0:01:52]} 18. h4 {[%clk 0:02:44]}  Bxe3 {[%clk 0:01:27]} 19. fxe3 {[%clk 0:02:45]}  h6 {[%clk 0:01:21]} 20. e4 {[%clk 0:02:40]}  f5 {[%clk 0:01:13]} 21. Qe2 {[%clk 0:02:37]}  Qe7 {[%clk 0:01:09]} 22. exf5 {[%clk 0:02:29]}  Bxf5 {[%clk 0:01:08]} 23. Be4 {[%clk 0:01:53]}  Qd7 {[%clk 0:01:05]} 24. Bxf5 {[%clk 0:01:45]}  Rxf5 {[%clk 0:01:04]} 25. Rxf5 {[%clk 0:01:45]}  Qxf5 {[%clk 0:01:05]} 26. Rf1 {[%clk 0:01:44]}  Qh3 {[%clk 0:01:05]} 27. Rf3 {[%clk 0:01:42]}  Re8 {[%clk 0:00:53]} 28. Qe4 {[%clk 0:01:38]}  Rf8 {[%clk 0:00:47]} 29. Rxf8+ {[%clk 0:01:36]}  Kxf8 {[%clk 0:00:48]} 30. Qg6 {[%clk 0:01:34]}  Qd7 {[%clk 0:00:44]} 31. g4 {[%clk 0:01:28]}  Qe7 {[%clk 0:00:40]} 32. g5 {[%clk 0:01:26]}  hxg5 {[%clk 0:00:39]} 33. hxg5 {[%clk 0:01:27]}  e4 {[%clk 0:00:38]} 34. Qf5+ {[%clk 0:01:26]}  Ke8 {[%clk 0:00:33]} 35. g6 {[%clk 0:01:23]}  Kd8 {[%clk 0:00:16]} 36. Kf1 {[%clk 0:01:12]}  Kc7 {[%clk 0:00:12]} 37. Ke2 {[%clk 0:01:11]}  e3 {[%clk 0:00:07]} 38. Qf7 {[%clk 0:01:09]}  Kd8 {[%clk 0:00:06]} 39. Qf4 {[%clk 0:01:05]}  Qe8 {[%clk 0:00:03]} 40. Qxd6+ {[%clk 0:01:03]}  Kc8 {[%clk 0:00:03]} 41. Qxa6+ {[%clk 0:01:00]}  Kc7 {[%clk 0:00:03]} 42. Qc6+ {[%clk 0:00:54]}  Qxc6 {[%clk 0:00:04]} 43. dxc6 {[%clk 0:00:55]}  Kxc6 {[%clk 0:00:04]} 44. Kxe3 {[%clk 0:00:56]}  Kd6 {[%clk 0:00:04]} 45. Kf4 {[%clk 0:00:54]}  Ke6 {[%clk 0:00:04]} 46. Kg5 {[%clk 0:00:55]}  Ke5 {[%clk 0:00:04]} 47. b3 {[%clk 0:00:55]}  Kd5 {[%clk 0:00:04]} 48. a4 {[%clk 0:00:55]}  bxa4 {[%clk 0:00:05]} 49. bxa4 {[%clk 0:00:56]}  Kc5 {[%clk 0:00:04]} 50. Kf5 {[%clk 0:00:56]}  Kb6 {[%clk 0:00:03]} 51. c4 {[%clk 0:00:56]}  Kc5 {[%clk 0:00:04]} 52. a5 {[%clk 0:00:56]}  Kc6 {[%clk 0:00:03]} 53. Ke6 {[%clk 0:00:56]} 1-0


[Site "https://www.chess.com"]

[Event "Titled Tuesday Blitz December 20 Late 2022"]
[White "Reprintsev, Alexander"]
[Black "Sielecki, Christof"]
[WhiteFideId "14100541"]
[BlackFideId "4620437"]
[WhiteElo "2230"]
[BlackElo "2443"]
[Result "1-0"]
[Round "10"]
[TimeControl "180+1"]
[Date "2022.12.21"]
[WhiteClock "0:00:58"]
[BlackClock "0:00:15"]

1. e4 {[%clk 0:02:48]}  c5 {[%clk 0:02:59]} 2. b3 {[%clk 0:02:47]}  a6 {[%clk 0:02:56]} 3. d4 {[%clk 0:02:45]}  cxd4 {[%clk 0:02:54]} 4. Qxd4 {[%clk 0:02:45]}  Nc6 {[%clk 0:02:54]} 5. Qd2 {[%clk 0:02:44]}  Nf6 {[%clk 0:02:52]} 6. Nc3 {[%clk 0:02:44]}  e6 {[%clk 0:02:45]} 7. Bb2 {[%clk 0:02:44]}  Bb4 {[%clk 0:02:45]} 8. f3 {[%clk 0:02:44]}  d5 {[%clk 0:02:45]} 9. a3 {[%clk 0:02:44]}  Bxc3 {[%clk 0:02:42]} 10. Bxc3 {[%clk 0:02:39]}  dxe4 {[%clk 0:02:40]} 11. Qxd8+ {[%clk 0:02:39]}  Kxd8 {[%clk 0:02:40]} 12. fxe4 {[%clk 0:02:31]}  e5 {[%clk 0:02:23]} 13. Bd3 {[%clk 0:02:17]}  Bg4 {[%clk 0:02:12]} 14. Nf3 {[%clk 0:02:15]}  Bxf3 {[%clk 0:02:11]} 15. gxf3 {[%clk 0:02:14]}  Ke7 {[%clk 0:02:10]} 16. O-O-O {[%clk 0:02:13]}  Nh5 {[%clk 0:02:09]} 17. Bc4 {[%clk 0:01:55]}  Nf4 {[%clk 0:02:05]} 18. Kb2 {[%clk 0:01:53]}  Rad8 {[%clk 0:02:04]} 19. Bd5 {[%clk 0:01:52]}  f6 {[%clk 0:01:52]} 20. Rd2 {[%clk 0:01:52]}  Rd7 {[%clk 0:01:21]} 21. Bxc6 {[%clk 0:01:48]}  bxc6 {[%clk 0:01:10]} 22. Bb4+ {[%clk 0:01:47]}  Ke6 {[%clk 0:01:07]} 23. Rxd7 {[%clk 0:01:46]}  Kxd7 {[%clk 0:01:08]} 24. Rd1+ {[%clk 0:01:46]}  Kc7 {[%clk 0:01:08]} 25. Ba5+ {[%clk 0:01:45]}  Kc8 {[%clk 0:01:03]} 26. Rd6 {[%clk 0:01:45]}  h5 {[%clk 0:00:51]} 27. Rxc6+ {[%clk 0:01:45]}  Kb8 {[%clk 0:00:51]} 28. Rxa6 {[%clk 0:01:44]}  h4 {[%clk 0:00:50]} 29. Rb6+ {[%clk 0:01:39]}  Ka7 {[%clk 0:00:49]} 30. Rd6 {[%clk 0:01:38]}  Kb7 {[%clk 0:00:19]} 31. c4 {[%clk 0:01:31]}  g5 {[%clk 0:00:18]} 32. Rxf6 {[%clk 0:01:29]}  Rg8 {[%clk 0:00:18]} 33. Rf7+ {[%clk 0:01:27]}  Kc8 {[%clk 0:00:17]} 34. b4 {[%clk 0:01:11]}  g4 {[%clk 0:00:17]} 35. fxg4 {[%clk 0:01:11]}  Rxg4 {[%clk 0:00:18]} 36. b5 {[%clk 0:01:11]}  Nd3+ {[%clk 0:00:18]} 37. Kc3 {[%clk 0:01:09]}  Nf4 {[%clk 0:00:17]} 38. b6 {[%clk 0:01:07]}  Rg2 {[%clk 0:00:15]} 39. b7+ {[%clk 0:01:01]}  Kb8 {[%clk 0:00:15]} 40. Bb4 {[%clk 0:01:00]}  Ne2+ {[%clk 0:00:16]} 41. Kd3 {[%clk 0:00:58]}  Nf4+ {[%clk 0:00:16]} 42. Ke3 {[%clk 0:00:58]}  Re2+ {[%clk 0:00:15]} 43. Kf3 {[%clk 0:00:58]} 1-0


[Site "https://www.chess.com"]

[Event "Titled Tuesday Blitz December 20 Late 2022"]
[White "Rian, Kapriaga"]
[Black "Postnikov, Artem"]
[WhiteFideId "7103263"]
[BlackFideId "34153575"]
[WhiteElo "2333"]
[BlackElo "2243"]
[Result "0-1"]
[Round "10"]
[TimeControl "180+1"]
[Date "2022.12.21"]
[WhiteClock "0:00:11"]
[BlackClock "0:00:07"]

1. d4 {[%clk 0:03:00]}  Nf6 {[%clk 0:02:46]} 2. Nf3 {[%clk 0:03:00]}  e6 {[%clk 0:02:46]} 3. Bf4 {[%clk 0:03:00]}  d5 {[%clk 0:02:46]} 4. e3 {[%clk 0:03:00]}  c5 {[%clk 0:02:47]} 5. Nbd2 {[%clk 0:02:59]}  Nc6 {[%clk 0:02:47]} 6. c3 {[%clk 0:02:58]}  Bd6 {[%clk 0:02:47]} 7. Ne5 {[%clk 0:02:57]}  Qc7 {[%clk 0:02:43]} 8. Bb5 {[%clk 0:02:57]}  O-O {[%clk 0:02:39]} 9. Ndf3 {[%clk 0:02:52]}  cxd4 {[%clk 0:02:13]} 10. exd4 {[%clk 0:02:31]}  Nh5 {[%clk 0:02:13]} 11. Be3 {[%clk 0:02:19]}  Nxe5 {[%clk 0:01:42]} 12. Nxe5 {[%clk 0:02:03]}  Bxe5 {[%clk 0:01:40]} 13. Qxh5 {[%clk 0:01:59]}  Bf4 {[%clk 0:01:36]} 14. Bxf4 {[%clk 0:01:50]}  Qxf4 {[%clk 0:01:36]} 15. O-O {[%clk 0:01:46]}  a5 {[%clk 0:01:19]} 16. Rae1 {[%clk 0:01:40]}  b6 {[%clk 0:01:17]} 17. Re3 {[%clk 0:01:29]}  g6 {[%clk 0:01:16]} 18. Qe2 {[%clk 0:01:26]}  Qd6 {[%clk 0:00:46]} 19. Re1 {[%clk 0:01:24]}  Bd7 {[%clk 0:00:44]} 20. Bd3 {[%clk 0:01:21]}  b5 {[%clk 0:00:42]} 21. Bxb5 {[%clk 0:01:16]}  Bxb5 {[%clk 0:00:43]} 22. Qxb5 {[%clk 0:01:16]}  Rab8 {[%clk 0:00:39]} 23. Qe2 {[%clk 0:01:16]}  a4 {[%clk 0:00:39]} 24. h4 {[%clk 0:01:04]}  h5 {[%clk 0:00:36]} 25. Re5 {[%clk 0:00:58]}  Qd8 {[%clk 0:00:29]} 26. Rg5 {[%clk 0:00:51]}  Qf6 {[%clk 0:00:17]} 27. Qc2 {[%clk 0:00:44]}  a3 {[%clk 0:00:15]} 28. bxa3 {[%clk 0:00:38]}  Rfc8 {[%clk 0:00:14]} 29. Re3 {[%clk 0:00:29]}  Qxd4 {[%clk 0:00:06]} 30. Rxe6 {[%clk 0:00:26]}  Qg7 {[%clk 0:00:01]} 31. Rexg6 {[%clk 0:00:25]}  fxg6 {[%clk 0:00:02]} 32. Rxg6 {[%clk 0:00:24]}  Rc7 {[%clk 0:00:01]} 33. Qf5 {[%clk 0:00:22]}  Rf8 {[%clk 0:00:01]} 34. Qxd5+ {[%clk 0:00:21]}  Rcf7 {[%clk 0:00:01]} 35. f3 {[%clk 0:00:18]}  Qxg6 {[%clk 0:00:01]} 36. Kh2 {[%clk 0:00:14]}  Qg7 {[%clk 0:00:02]} 37. Qxh5 {[%clk 0:00:14]}  Rf5 {[%clk 0:00:02]} 38. Qg4 {[%clk 0:00:12]}  Qxg4 {[%clk 0:00:03]} 39. fxg4 {[%clk 0:00:12]}  Rf4 {[%clk 0:00:03]} 40. Kg3 {[%clk 0:00:12]}  Ra4 {[%clk 0:00:04]} 41. h5 {[%clk 0:00:11]}  Rxa3 {[%clk 0:00:05]} 42. Kh4 {[%clk 0:00:12]}  Rxa2 {[%clk 0:00:06]} 43. g5 {[%clk 0:00:12]}  Rc2 {[%clk 0:00:07]} 44. g4 {[%clk 0:00:12]}  Rxc3 {[%clk 0:00:08]} 45. g6 {[%clk 0:00:12]}  Rf4 {[%clk 0:00:07]} 46. Kg5 {[%clk 0:00:11]}  Rcc4 {[%clk 0:00:07]} 47. Kh6 {[%clk 0:00:11]}  Rxg4 {[%clk 0:00:07]} 48. g7 {[%clk 0:00:11]}  Rc6# {[%clk 0:00:07]} 0-1


[Site "https://www.chess.com"]

[Event "Titled Tuesday Blitz December 20 Late 2022"]
[White "Rose, Felix"]
[Black "Skibbe, Willi"]
[WhiteFideId "5105722"]
[BlackFideId "4682190"]
[WhiteElo "2039"]
[BlackElo "2318"]
[Result "1-0"]
[Round "10"]
[TimeControl "180+1"]
[Date "2022.12.21"]
[WhiteClock "0:00:03"]
[BlackClock "0:00:01"]

1. d4 {[%clk 0:03:00]}  g6 {[%clk 0:02:59]} 2. e4 {[%clk 0:02:59]}  Bg7 {[%clk 0:03:00]} 3. Nf3 {[%clk 0:02:59]}  d6 {[%clk 0:02:59]} 4. h3 {[%clk 0:02:57]}  Nd7 {[%clk 0:02:58]} 5. Nc3 {[%clk 0:02:56]}  c6 {[%clk 0:02:58]} 6. a4 {[%clk 0:02:56]}  e5 {[%clk 0:02:58]} 7. dxe5 {[%clk 0:02:54]}  Nxe5 {[%clk 0:02:58]} 8. Bf4 {[%clk 0:02:51]}  Ne7 {[%clk 0:02:39]} 9. Be2 {[%clk 0:02:31]}  Be6 {[%clk 0:02:35]} 10. Qd2 {[%clk 0:02:29]}  Qc7 {[%clk 0:02:24]} 11. O-O {[%clk 0:02:26]}  O-O {[%clk 0:02:23]} 12. Rfd1 {[%clk 0:02:24]}  Rad8 {[%clk 0:02:23]} 13. a5 {[%clk 0:02:15]}  Nxf3+ {[%clk 0:01:57]} 14. Bxf3 {[%clk 0:02:14]}  Be5 {[%clk 0:01:58]} 15. Bh6 {[%clk 0:02:06]}  Rfe8 {[%clk 0:01:58]} 16. Qe3 {[%clk 0:02:05]}  b6 {[%clk 0:01:46]} 17. axb6 {[%clk 0:02:01]}  axb6 {[%clk 0:01:46]} 18. Ra6 {[%clk 0:02:01]}  Nc8 {[%clk 0:01:41]} 19. Be2 {[%clk 0:01:42]}  b5 {[%clk 0:01:25]} 20. f4 {[%clk 0:01:29]}  Bg7 {[%clk 0:01:24]} 21. Bxg7 {[%clk 0:01:26]}  Kxg7 {[%clk 0:01:25]} 22. Bf3 {[%clk 0:01:24]}  b4 {[%clk 0:01:21]} 23. Qd4+ {[%clk 0:01:23]}  f6 {[%clk 0:01:19]} 24. Qxb4 {[%clk 0:01:23]}  d5 {[%clk 0:01:10]} 25. Qc5 {[%clk 0:00:52]}  Qxf4 {[%clk 0:01:00]} 26. Rxc6 {[%clk 0:00:32]}  d4 {[%clk 0:00:58]} 27. Ne2 {[%clk 0:00:22]}  Qe3+ {[%clk 0:00:57]} 28. Kh2 {[%clk 0:00:22]}  Bd7 {[%clk 0:00:53]} 29. Rc7 {[%clk 0:00:21]}  Ne7 {[%clk 0:00:25]} 30. Rxd4 {[%clk 0:00:19]}  f5 {[%clk 0:00:13]} 31. Qe5+ {[%clk 0:00:12]}  Kf7 {[%clk 0:00:11]} 32. Rdxd7 {[%clk 0:00:12]}  Rxd7 {[%clk 0:00:11]} 33. Rxd7 {[%clk 0:00:12]}  fxe4 {[%clk 0:00:11]} 34. Qxe4 {[%clk 0:00:10]}  Qg5 {[%clk 0:00:08]} 35. Nf4 {[%clk 0:00:07]}  Kg8 {[%clk 0:00:02]} 36. Qe6+ {[%clk 0:00:05]}  Kf8 {[%clk 0:00:02]} 37. Qe3 {[%clk 0:00:04]}  Kg8 {[%clk 0:00:01]} 38. Bd5+ {[%clk 0:00:03]} 1-0


[Site "https://www.chess.com"]